[Event "Early-Titled-Tuesday-Blitz-May-28-2024"]
[Site "Chess.com"]
[Date "2024.05.28"]
[Round "9"]
[White "gabduschew"]
[Black "Dexter_Dyke"]
[Result "1/2-1/2"]
[WhiteElo "2317"]
[BlackElo "2444"]
[TimeControl "180+1"]
[EndTime "9:48:36 PDT"]
[Termination "Game drawn - insufficient material"]

1. e4 {[%clk 0:03:00]} 1... e6 {[%clk 0:02:57.9]} 2. d3 {[%clk 0:02:55.7]} 2...
a6 {[%clk 0:02:58.8]} 3. Nd2 {[%clk 0:02:56.5]} 3... c5 {[%clk 0:02:56.7]} 4.
Ngf3 {[%clk 0:02:56.8]} 4... Nc6 {[%clk 0:02:57.3]} 5. g3 {[%clk 0:02:57.3]}
5... Be7 {[%clk 0:02:57.2]} 6. Bg2 {[%clk 0:02:57.9]} 6... h5 {[%clk 0:02:57.6]}
7. O-O {[%clk 0:02:58.1]} 7... h4 {[%clk 0:02:57.7]} 8. c3 {[%clk 0:02:58]} 8...
hxg3 {[%clk 0:02:54.7]} 9. fxg3 {[%clk 0:02:58.9]} 9... Nf6 {[%clk 0:02:54.2]}
10. Nc4 {[%clk 0:02:55.8]} 10... d5 {[%clk 0:02:53.7]} 11. Nce5 {[%clk
0:02:55.6]} 11... Bd6 {[%clk 0:02:46.8]} 12. Nxc6 {[%clk 0:02:55.1]} 12... bxc6
{[%clk 0:02:46.9]} 13. e5 {[%clk 0:02:55.6]} 13... Be7 {[%clk 0:02:42.7]} 14.
exf6 {[%clk 0:02:55.7]} 14... gxf6 {[%clk 0:02:43.6]} 15. d4 {[%clk 0:02:55.5]}
15... c4 {[%clk 0:02:41.3]} 16. Bf4 {[%clk 0:02:50.7]} 16... Qb6 {[%clk
0:02:38.4]} 17. Rb1 {[%clk 0:02:49.9]} 17... Qa5 {[%clk 0:02:36]} 18. a3 {[%clk
0:02:49.4]} 18... Bd7 {[%clk 0:02:33.2]} 19. Nd2 {[%clk 0:02:48.6]} 19... Rc8
{[%clk 0:02:13.4]} 20. Qf3 {[%clk 0:02:44.9]} 20... c5 {[%clk 0:02:10.7]} 21.
Be3 {[%clk 0:02:40.3]} 21... cxd4 {[%clk 0:02:06.8]} 22. Bxd4 {[%clk 0:02:40.8]}
22... e5 {[%clk 0:02:05.6]} 23. Bxe5 {[%clk 0:02:32.3]} 23... fxe5 {[%clk
0:02:03.5]} 24. Qxf7+ {[%clk 0:02:32.6]} 24... Kd8 {[%clk 0:02:04.2]} 25. Qxd5
{[%clk 0:02:25.1]} 25... Qxd5 {[%clk 0:01:47.2]} 26. Bxd5 {[%clk 0:02:26]} 26...
Bc5+ {[%clk 0:01:47.8]} 27. Kh1 {[%clk 0:02:20.3]} 27... Bh3 {[%clk 0:01:36.6]}
28. Rf6 {[%clk 0:02:10.9]} 28... Be7 {[%clk 0:01:22.3]} 29. Rf7 {[%clk
0:02:07.8]} 29... Rh6 {[%clk 0:01:17.1]} 30. Ne4 {[%clk 0:02:05.6]} 30... Kd7
{[%clk 0:00:41.3]} 31. Rd1 {[%clk 0:02:02.2]} 31... Rch8 {[%clk 0:00:41]} 32.
Bxc4+ {[%clk 0:01:50.3]} 32... Ke8 {[%clk 0:00:41]} 33. Rf2 {[%clk 0:01:42.4]}
33... Bg4 {[%clk 0:00:40]} 34. Re1 {[%clk 0:01:37.6]} 34... Bd8 {[%clk
0:00:31.8]} 35. Bxa6 {[%clk 0:01:21.7]} 35... Rxa6 {[%clk 0:00:27.1]} 36. Nc5
{[%clk 0:01:11.4]} 36... Rah6 {[%clk 0:00:20.4]} 37. Rxe5+ {[%clk 0:01:08.8]}
37... Be7 {[%clk 0:00:21.1]} 38. Ne4 {[%clk 0:00:43.9]} 38... Kd8 {[%clk
0:00:20.2]} 39. Rd2+ {[%clk 0:00:35.5]} 39... Ke8 {[%clk 0:00:20.4]} 40. Nd6+
{[%clk 0:00:29.9]} 40... Kf8 {[%clk 0:00:18.5]} 41. Rf2+ {[%clk 0:00:27.1]}
41... Rf6 {[%clk 0:00:18.5]} 42. Rxf6+ {[%clk 0:00:20.7]} 42... Bxf6 {[%clk
0:00:19.4]} 43. Re1 {[%clk 0:00:15.5]} 43... Bh3 {[%clk 0:00:19]} 44. Ne4 {[%clk
0:00:14.1]} 44... Bd8 {[%clk 0:00:19]} 45. Kg1 {[%clk 0:00:13]} 45... Kg7 {[%clk
0:00:19.4]} 46. b4 {[%clk 0:00:11.3]} 46... Bb6+ {[%clk 0:00:19.6]} 47. Nc5
{[%clk 0:00:08.6]} 47... Rc8 {[%clk 0:00:20.3]} 48. Re5 {[%clk 0:00:08]} 48...
Rf8 {[%clk 0:00:19.2]} 49. Re1 {[%clk 0:00:02.8]} 49... Bxc5+ {[%clk 0:00:18.9]}
50. bxc5 {[%clk 0:00:03.2]} 50... Rf5 {[%clk 0:00:19.7]} 51. c4 {[%clk
0:00:03.1]} 51... Rxc5 {[%clk 0:00:20.4]} 52. Rc1 {[%clk 0:00:03.5]} 52... Kf6
{[%clk 0:00:19]} 53. Kf2 {[%clk 0:00:04]} 53... Ke5 {[%clk 0:00:19.7]} 54. Ke3
{[%clk 0:00:04.5]} 54... Be6 {[%clk 0:00:19.7]} 55. h4 {[%clk 0:00:04.8]} 55...
Bxc4 {[%clk 0:00:17.9]} 56. a4 {[%clk 0:00:04.7]} 56... Kd5 {[%clk 0:00:18.2]}
57. g4 {[%clk 0:00:04.3]} 57... Ra5 {[%clk 0:00:18.4]} 58. Kf4 {[%clk
0:00:02.5]} 58... Rxa4 {[%clk 0:00:18.8]} 59. Kg5 {[%clk 0:00:02.9]} 59... Bd3
{[%clk 0:00:18.9]} 60. Rd1 {[%clk 0:00:01.5]} 60... Ke4 {[%clk 0:00:18.7]} 61.
Kh5 {[%clk 0:00:01.8]} 61... Ke3 {[%clk 0:00:19.5]} 62. g5 {[%clk 0:00:02.7]}
62... Ke2 {[%clk 0:00:19.9]} 63. Rg1 {[%clk 0:00:02.4]} 63... Be4 {[%clk
0:00:18.9]} 64. Kh6 {[%clk 0:00:02.3]} 64... Bf3 {[%clk 0:00:19.8]} 65. g6
{[%clk 0:00:02.7]} 65... Rxh4+ {[%clk 0:00:18.3]} 66. Kg5 {[%clk 0:00:03.4]}
66... Ra4 {[%clk 0:00:13]} 67. g7 {[%clk 0:00:03.3]} 67... Bd5 {[%clk
0:00:12.3]} 68. Kf6 {[%clk 0:00:02.6]} 68... Bg8 {[%clk 0:00:11.9]} 69. Ke7
{[%clk 0:00:02.7]} 69... Ra8 {[%clk 0:00:12.5]} 70. Kf6 {[%clk 0:00:02.9]} 70...
Kf3 {[%clk 0:00:12.7]} 71. Rf1+ {[%clk 0:00:02.8]} 71... Ke4 {[%clk 0:00:13.1]}
72. Re1+ {[%clk 0:00:03.1]} 72... Kd5 {[%clk 0:00:13.4]} 73. Rd1+ {[%clk
0:00:03.6]} 73... Kc6 {[%clk 0:00:14]} 74. Rc1+ {[%clk 0:00:04.1]} 74... Kd6
{[%clk 0:00:14.6]} 75. Rd1+ {[%clk 0:00:04.5]} 75... Bd5 {[%clk 0:00:15.3]} 76.
Kg6 {[%clk 0:00:03.9]} 76... Ke6 {[%clk 0:00:15]} 77. Kh7 {[%clk 0:00:03.5]}
77... Ke5 {[%clk 0:00:13.8]} 78. Rxd5+ {[%clk 0:00:03]} 78... Kxd5 {[%clk
0:00:14.7]} 79. g8=Q+ {[%clk 0:00:03.7]} 79... Rxg8 {[%clk 0:00:15.1]} 80. Kxg8
{[%clk 0:00:04.6]} 1/2-1/2

[Event "Early-Titled-Tuesday-Blitz-May-28-2024"]
[Site "Chess.com"]
[Date "2024.05.28"]
[Round "9"]
[White "chess_sharparchitect"]
[Black "ChempionBg"]
[Result "1/2-1/2"]
[WhiteElo "2359"]
[BlackElo "2241"]
[TimeControl "180+1"]
[EndTime "9:48:37 PDT"]
[Termination "Game drawn by repetition"]

1. c4 {[%clk 0:03:00.9]} 1... c5 {[%clk 0:02:56.4]} 2. Nc3 {[%clk 0:03:00]} 2...
Nc6 {[%clk 0:02:54.7]} 3. Nf3 {[%clk 0:02:59.6]} 3... Nf6 {[%clk 0:02:50]} 4. e3
{[%clk 0:02:59.6]} 4... g6 {[%clk 0:02:44.4]} 5. d4 {[%clk 0:02:59.7]} 5... cxd4
{[%clk 0:02:43.6]} 6. exd4 {[%clk 0:02:59.2]} 6... d5 {[%clk 0:02:44.2]} 7. Bg5
{[%clk 0:02:44.8]} 7... dxc4 {[%clk 0:02:33.1]} 8. d5 {[%clk 0:02:34.1]} 8...
Na5 {[%clk 0:02:11.8]} 9. Bxf6 {[%clk 0:02:11.3]} 9... exf6 {[%clk 0:02:09.8]}
10. Bxc4 {[%clk 0:02:07.6]} 10... Nxc4 {[%clk 0:01:55.7]} 11. Qa4+ {[%clk
0:02:07.3]} 11... Bd7 {[%clk 0:01:54.5]} 12. Qxc4 {[%clk 0:02:06.8]} 12... Bg7
{[%clk 0:01:55.2]} 13. O-O {[%clk 0:01:56.9]} 13... O-O {[%clk 0:01:55.3]} 14.
h3 {[%clk 0:01:44.5]} 14... f5 {[%clk 0:01:53.8]} 15. Rfd1 {[%clk 0:01:37.4]}
15... Re8 {[%clk 0:01:52.2]} 16. Qb4 {[%clk 0:01:33.1]} 16... Qb6 {[%clk
0:01:43.7]} 17. Qxb6 {[%clk 0:01:08]} 17... axb6 {[%clk 0:01:43]} 18. Rd3 {[%clk
0:01:04.2]} 18... b5 {[%clk 0:01:41.1]} 19. Nd4 {[%clk 0:00:46.4]} 19... b4
{[%clk 0:01:34.4]} 20. Ncb5 {[%clk 0:00:45.2]} 20... Bxb5 {[%clk 0:01:31.8]} 21.
Nxb5 {[%clk 0:00:44.9]} 21... Bxb2 {[%clk 0:01:32.5]} 22. Rb1 {[%clk 0:00:38.3]}
22... Rxa2 {[%clk 0:01:32.2]} 23. d6 {[%clk 0:00:35.2]} 23... Ra1 {[%clk
0:01:14.1]} 24. Rxa1 {[%clk 0:00:17.4]} 24... Bxa1 {[%clk 0:01:12.6]} 25. Rb3
{[%clk 0:00:16.8]} 25... Re1+ {[%clk 0:00:47.6]} 26. Kh2 {[%clk 0:00:16.9]}
26... Be5+ {[%clk 0:00:48.1]} 27. g3 {[%clk 0:00:17.2]} 27... Rd1 {[%clk
0:00:41.3]} 28. Rxb4 {[%clk 0:00:17]} 28... Rd2 {[%clk 0:00:34.7]} 29. Kg2
{[%clk 0:00:16.2]} 29... b6 {[%clk 0:00:27.2]} 30. Rb3 {[%clk 0:00:15.8]} 30...
Bxd6 {[%clk 0:00:23.9]} 31. Nxd6 {[%clk 0:00:07.9]} 31... Rxd6 {[%clk
0:00:23.8]} 32. Rb5 {[%clk 0:00:06.9]} 32... Kg7 {[%clk 0:00:22.7]} 33. Kf3
{[%clk 0:00:07]} 33... Kf6 {[%clk 0:00:23.1]} 34. h4 {[%clk 0:00:05.8]} 34...
Ke6 {[%clk 0:00:23.1]} 35. Rb1 {[%clk 0:00:04.8]} 35... Kd7 {[%clk 0:00:23.1]}
36. Kg2 {[%clk 0:00:02.8]} 36... Kc7 {[%clk 0:00:22.5]} 37. Kh3 {[%clk 0:00:02]}
37... Kc6 {[%clk 0:00:16.2]} 38. Kg2 {[%clk 0:00:02.4]} 38... b5 {[%clk
0:00:15.9]} 39. Kf3 {[%clk 0:00:03]} 39... Rd4 {[%clk 0:00:10.4]} 40. Ke3 {[%clk
0:00:02.4]} 40... Re4+ {[%clk 0:00:08.6]} 41. Kd3 {[%clk 0:00:02.7]} 41... b4
{[%clk 0:00:09.1]} 42. f3 {[%clk 0:00:00.3]} 42... Re6 {[%clk 0:00:04]} 43. Rxb4
{[%clk 0:00:01]} 43... Rd6+ {[%clk 0:00:03.9]} 44. Ke3 {[%clk 0:00:01]} 44...
Kc5 {[%clk 0:00:04.3]} 45. Rb1 {[%clk 0:00:01]} 45... Re6+ {[%clk 0:00:03.3]}
46. Kf2 {[%clk 0:00:01.4]} 46... Re7 {[%clk 0:00:03]} 47. Ra1 {[%clk 0:00:01.9]}
47... Kc6 {[%clk 0:00:02.9]} 48. Ra5 {[%clk 0:00:02]} 48... Kb6 {[%clk
0:00:02.9]} 49. Ra4 {[%clk 0:00:02]} 49... Kb5 {[%clk 0:00:03.1]} 50. Ra8 {[%clk
0:00:02.1]} 50... Kc4 {[%clk 0:00:03.2]} 51. Rh8 {[%clk 0:00:02.1]} 51... h5
{[%clk 0:00:01.9]} 52. Rd8 {[%clk 0:00:02.1]} 52... Kc3 {[%clk 0:00:01.9]} 53.
Rd6 {[%clk 0:00:02]} 53... Kc4 {[%clk 0:00:02]} 54. Rd8 {[%clk 0:00:02]} 54...
Kc3 {[%clk 0:00:02.3]} 55. Rd1 {[%clk 0:00:01.8]} 55... Kc4 {[%clk 0:00:02.1]}
56. Rd2 {[%clk 0:00:01.9]} 56... Kc5 {[%clk 0:00:02.3]} 57. Rd8 {[%clk
0:00:02.3]} 57... Kc6 {[%clk 0:00:02.6]} 58. Rd3 {[%clk 0:00:02]} 58... Rd7
{[%clk 0:00:02.8]} 59. Rc3+ {[%clk 0:00:01.6]} 59... Kd6 {[%clk 0:00:03.1]} 60.
Rd3+ {[%clk 0:00:01.8]} 60... Ke6 {[%clk 0:00:03.4]} 61. Re3+ {[%clk 0:00:02.1]}
61... Kf6 {[%clk 0:00:03.4]} 62. Ra3 {[%clk 0:00:02.2]} 62... Rb7 {[%clk
0:00:03.4]} 63. Ra6+ {[%clk 0:00:01.8]} 63... Kg7 {[%clk 0:00:01.8]} 64. Ra2
{[%clk 0:00:01.7]} 64... Rb3 {[%clk 0:00:01.8]} 65. f4 {[%clk 0:00:01.5]} 65...
Rc3 {[%clk 0:00:01.6]} 66. Ra6 {[%clk 0:00:01.3]} 66... Kf8 {[%clk 0:00:01.4]}
67. Rb6 {[%clk 0:00:01.4]} 67... Kg7 {[%clk 0:00:02]} 68. Ra6 {[%clk 0:00:01.8]}
68... Rd3 {[%clk 0:00:02.5]} 69. Rb6 {[%clk 0:00:01.9]} 69... Rc3 {[%clk
0:00:02.7]} 70. Ra6 {[%clk 0:00:02.2]} 1/2-1/2

[Event "Early-Titled-Tuesday-Blitz-May-28-2024"]
[Site "Chess.com"]
[Date "2024.05.28"]
[Round "9"]
[White "FlemingA"]
[Black "Lion-Al-Messi"]
[Result "1-0"]
[WhiteElo "2477"]
[BlackElo "2611"]
[TimeControl "180+1"]
[EndTime "9:48:44 PDT"]
[Termination "FlemingA won by resignation"]

1. e4 {[%clk 0:03:00.3]} 1... e6 {[%clk 0:02:56.9]} 2. Qe2 {[%clk 0:02:59.9]}
2... c5 {[%clk 0:02:54.5]} 3. Nf3 {[%clk 0:03:00.1]} 3... Nc6 {[%clk 0:02:54.6]}
4. g3 {[%clk 0:03:00.4]} 4... Nf6 {[%clk 0:02:51.7]} 5. Bg2 {[%clk 0:02:58.7]}
5... d5 {[%clk 0:02:52]} 6. d3 {[%clk 0:02:58.7]} 6... Be7 {[%clk 0:02:51.6]} 7.
O-O {[%clk 0:02:58.6]} 7... b6 {[%clk 0:02:51.4]} 8. Re1 {[%clk 0:02:51.6]} 8...
Bb7 {[%clk 0:02:51.1]} 9. a4 {[%clk 0:02:46.4]} 9... a5 {[%clk 0:02:49.7]} 10.
Nbd2 {[%clk 0:02:46.7]} 10... Qc7 {[%clk 0:02:48.3]} 11. c3 {[%clk 0:02:46.3]}
11... h6 {[%clk 0:02:47.8]} 12. h4 {[%clk 0:02:29.4]} 12... O-O {[%clk 0:02:33]}
13. e5 {[%clk 0:02:28.6]} 13... Nd7 {[%clk 0:02:30.3]} 14. Nf1 {[%clk
0:02:28.9]} 14... d4 {[%clk 0:02:27]} 15. c4 {[%clk 0:02:23.2]} 15... Nb4 {[%clk
0:02:25.9]} 16. Bf4 {[%clk 0:02:18.9]} 16... Qc6 {[%clk 0:02:24.2]} 17. h5
{[%clk 0:02:15.1]} 17... Rae8 {[%clk 0:02:06.5]} 18. N1h2 {[%clk 0:02:07.5]}
18... f5 {[%clk 0:02:01.9]} 19. Nh4 {[%clk 0:01:50.5]} 19... Qc8 {[%clk
0:01:59.7]} 20. Ng6 {[%clk 0:01:50.8]} 20... Rf7 {[%clk 0:01:56.7]} 21. Nf3
{[%clk 0:01:45.9]} 21... Nf8 {[%clk 0:01:52.2]} 22. Nxe7+ {[%clk 0:01:41]} 22...
Rfxe7 {[%clk 0:01:53.1]} 23. Nh4 {[%clk 0:01:39.5]} 23... Bxg2 {[%clk
0:01:51.5]} 24. Kxg2 {[%clk 0:01:33.8]} 24... Qb7+ {[%clk 0:01:51.7]} 25. Kg1
{[%clk 0:01:32.2]} 25... Rd7 {[%clk 0:01:47.9]} 26. b3 {[%clk 0:01:30.8]} 26...
Kh7 {[%clk 0:01:44.5]} 27. Rac1 {[%clk 0:01:30.1]} 27... Rdd8 {[%clk 0:01:40.5]}
28. Ng2 {[%clk 0:01:23]} 28... Qf7 {[%clk 0:01:37.3]} 29. Bd2 {[%clk 0:01:21]}
29... g5 {[%clk 0:01:34.5]} 30. hxg6+ {[%clk 0:01:09.6]} 30... Nxg6 {[%clk
0:01:34.5]} 31. Nf4 {[%clk 0:01:06.8]} 31... Nxf4 {[%clk 0:01:32.8]} 32. Bxf4
{[%clk 0:01:07.7]} 32... Rg8 {[%clk 0:01:29.1]} 33. Qf3 {[%clk 0:01:04.6]} 33...
Rg4 {[%clk 0:01:27.6]} 34. Kg2 {[%clk 0:01:02.6]} 34... Rdg8 {[%clk 0:01:23.9]}
35. Rh1 {[%clk 0:01:00.9]} 35... R8g6 {[%clk 0:01:24.5]} 36. Kf1 {[%clk
0:00:57.6]} 36... Qd7 {[%clk 0:01:05.9]} 37. Ke2 {[%clk 0:00:49.2]} 37... Qc6
{[%clk 0:01:05.9]} 38. Qxc6 {[%clk 0:00:36.8]} 38... Nxc6 {[%clk 0:01:06.8]} 39.
Rh2 {[%clk 0:00:30.1]} 39... Ne7 {[%clk 0:01:06.5]} 40. Rch1 {[%clk 0:00:21.4]}
40... Ng8 {[%clk 0:01:06.4]} 41. f3 {[%clk 0:00:21.2]} 41... Rxg3 {[%clk
0:01:06]} 42. Bxg3 {[%clk 0:00:21.9]} 42... Rxg3 {[%clk 0:01:06.5]} 43. Kf2
{[%clk 0:00:22.5]} 43... Rg5 {[%clk 0:01:05.5]} 44. Rg2 {[%clk 0:00:20.4]} 44...
Kg7 {[%clk 0:01:02.5]} 45. f4 {[%clk 0:00:18.4]} 45... Rxg2+ {[%clk 0:00:56.6]}
46. Kxg2 {[%clk 0:00:19.3]} 46... Ne7 {[%clk 0:00:56.4]} 47. Kg3 {[%clk
0:00:12.9]} 47... Nc6 {[%clk 0:00:56]} 48. Kh4 {[%clk 0:00:11.2]} 48... Nb4
{[%clk 0:00:56.4]} 49. Rg1+ {[%clk 0:00:08.9]} 49... Kh7 {[%clk 0:00:54.7]} 50.
Rg3 {[%clk 0:00:09]} 50... Nc2 {[%clk 0:00:54.3]} 51. Kh5 {[%clk 0:00:06.8]}
51... Ne3 {[%clk 0:00:54.3]} 52. Rg6 {[%clk 0:00:04.8]} 52... Ng4 {[%clk
0:00:44.1]} 53. Rxe6 {[%clk 0:00:03.9]} 53... Nf2 {[%clk 0:00:43.3]} 54. Rxb6
{[%clk 0:00:04.3]} 54... Nxd3 {[%clk 0:00:43]} 55. Rxh6+ {[%clk 0:00:03]} 55...
Kg7 {[%clk 0:00:42.8]} 56. Kg5 {[%clk 0:00:03.3]} 56... Nxf4 {[%clk 0:00:39.4]}
57. Ra6 {[%clk 0:00:03.7]} 57... Nh3+ {[%clk 0:00:19]} 58. Kxf5 {[%clk
0:00:03.7]} 58... d3 {[%clk 0:00:19.5]} 59. Ra7+ {[%clk 0:00:04]} 59... Kf8
{[%clk 0:00:19.4]} 60. Rd7 {[%clk 0:00:04.1]} 60... Nf2 {[%clk 0:00:19.2]} 61.
e6 {[%clk 0:00:02.8]} 61... Ke8 {[%clk 0:00:19.8]} 62. Rd5 {[%clk 0:00:02.7]}
62... Ke7 {[%clk 0:00:17.9]} 63. Ke5 {[%clk 0:00:03.1]} 63... Ng4+ {[%clk
0:00:17.6]} 64. Ke4 {[%clk 0:00:03.4]} 64... Nf2+ {[%clk 0:00:14.9]} 65. Ke3
{[%clk 0:00:03.4]} 65... Ng4+ {[%clk 0:00:14.6]} 66. Kxd3 {[%clk 0:00:03.7]}
66... Kxe6 {[%clk 0:00:15]} 67. Rxc5 {[%clk 0:00:03.2]} 67... Nf2+ {[%clk
0:00:15.9]} 68. Kc3 {[%clk 0:00:03.5]} 68... Ne4+ {[%clk 0:00:16.3]} 69. Kd4
{[%clk 0:00:04.2]} 69... Nd2 {[%clk 0:00:16.7]} 70. Rb5 {[%clk 0:00:03.8]} 70...
Kd6 {[%clk 0:00:15.9]} 71. Kc3 {[%clk 0:00:03.1]} 71... Ne4+ {[%clk 0:00:15.6]}
72. Kb2 {[%clk 0:00:03.7]} 72... Kc6 {[%clk 0:00:14.9]} 73. Rxa5 {[%clk
0:00:03.5]} 73... Nf2 {[%clk 0:00:15.4]} 74. Rh5 {[%clk 0:00:02.4]} 74... Ng4
{[%clk 0:00:15]} 75. Ka3 {[%clk 0:00:02.9]} 75... Ne3 {[%clk 0:00:14.9]} 76.
Rh6+ {[%clk 0:00:03.3]} 76... Kb7 {[%clk 0:00:15.2]} 77. Rh5 {[%clk 0:00:04.2]}
77... Ng4 {[%clk 0:00:15.3]} 78. Rg5 {[%clk 0:00:04.7]} 78... Nf6 {[%clk
0:00:15.7]} 79. Rg6 {[%clk 0:00:04.9]} 79... Ne4 {[%clk 0:00:16]} 80. Rg7+
{[%clk 0:00:05.2]} 80... Kb6 {[%clk 0:00:16]} 81. Rg6+ {[%clk 0:00:06.1]} 81...
Kc5 {[%clk 0:00:16.2]} 82. Rh6 {[%clk 0:00:06.5]} 82... Kd4 {[%clk 0:00:16.6]}
83. Rh4 {[%clk 0:00:06.7]} 83... Kc3 {[%clk 0:00:16.4]} 84. Rxe4 {[%clk
0:00:06.6]} 1-0

[Event "Early-Titled-Tuesday-Blitz-May-28-2024"]
[Site "Chess.com"]
[Date "2024.05.28"]
[Round "9"]
[White "AlexandraSamaganova"]
[Black "Slovineanu"]
[Result "0-1"]
[WhiteElo "2392"]
[BlackElo "2534"]
[TimeControl "180+1"]
[EndTime "9:48:47 PDT"]
[Termination "Slovineanu won by checkmate"]

1. c4 {[%clk 0:03:00.9]} 1... e5 {[%clk 0:02:56.7]} 2. Nc3 {[%clk 0:03:00.4]}
2... Bb4 {[%clk 0:02:55.7]} 3. Qb3 {[%clk 0:02:55.8]} 3... Nc6 {[%clk
0:02:54.6]} 4. e3 {[%clk 0:02:53.4]} 4... Nf6 {[%clk 0:02:50.1]} 5. Nf3 {[%clk
0:02:48.6]} 5... O-O {[%clk 0:02:44.9]} 6. Be2 {[%clk 0:02:44.4]} 6... e4 {[%clk
0:02:20.7]} 7. Nd4 {[%clk 0:02:43.1]} 7... Nxd4 {[%clk 0:02:17.2]} 8. exd4
{[%clk 0:02:44]} 8... a5 {[%clk 0:02:14.5]} 9. O-O {[%clk 0:02:37.4]} 9... Bxc3
{[%clk 0:02:10.1]} 10. dxc3 {[%clk 0:02:35.8]} 10... d5 {[%clk 0:02:02.7]} 11.
cxd5 {[%clk 0:02:33.1]} 11... Nxd5 {[%clk 0:01:54.9]} 12. c4 {[%clk 0:02:30.4]}
12... Nb4 {[%clk 0:01:44.4]} 13. d5 {[%clk 0:02:23.6]} 13... Bf5 {[%clk
0:01:36.7]} 14. Be3 {[%clk 0:02:20.1]} 14... Qf6 {[%clk 0:01:25.8]} 15. Bc5
{[%clk 0:02:14.7]} 15... Rfe8 {[%clk 0:01:12.1]} 16. Bxb4 {[%clk 0:02:12.6]}
16... axb4 {[%clk 0:01:12.3]} 17. Qxb4 {[%clk 0:02:11.8]} 17... b6 {[%clk
0:01:12.9]} 18. a4 {[%clk 0:01:47.7]} 18... e3 {[%clk 0:01:08.3]} 19. fxe3
{[%clk 0:01:39.7]} 19... Rxe3 {[%clk 0:01:08.8]} 20. Bf3 {[%clk 0:01:26.7]}
20... Rae8 {[%clk 0:00:56.2]} 21. c5 {[%clk 0:01:18.4]} 21... Bd3 {[%clk
0:00:36.5]} 22. Rf2 {[%clk 0:01:12.4]} 22... bxc5 {[%clk 0:00:34.4]} 23. Qd2
{[%clk 0:01:02.4]} 23... Qd4 {[%clk 0:00:30.6]} 24. Kh1 {[%clk 0:00:39.1]} 24...
c4 {[%clk 0:00:27]} 25. h3 {[%clk 0:00:35.3]} 25... Rb8 {[%clk 0:00:17.4]} 26.
a5 {[%clk 0:00:33.6]} 26... Ree8 {[%clk 0:00:12]} 27. a6 {[%clk 0:00:32.6]}
27... Qb6 {[%clk 0:00:08.9]} 28. d6 {[%clk 0:00:19.2]} 28... cxd6 {[%clk
0:00:06.8]} 29. a7 {[%clk 0:00:19.2]} 29... Ra8 {[%clk 0:00:06.9]} 30. Bxa8
{[%clk 0:00:19.1]} 30... Rxa8 {[%clk 0:00:07.4]} 31. Qf4 {[%clk 0:00:18.8]}
31... f6 {[%clk 0:00:05.5]} 32. Qf3 {[%clk 0:00:17.4]} 32... Rxa7 {[%clk
0:00:03.4]} 33. Qd5+ {[%clk 0:00:17.4]} 33... Kf8 {[%clk 0:00:02.5]} 34. Rxa7
{[%clk 0:00:12.1]} 34... Qxa7 {[%clk 0:00:03.1]} 35. Qxd6+ {[%clk 0:00:12.6]}
35... Kf7 {[%clk 0:00:03.6]} 36. Qd5+ {[%clk 0:00:12.1]} 36... Kf8 {[%clk
0:00:03.5]} 37. Rf4 {[%clk 0:00:06.8]} 37... Qa1+ {[%clk 0:00:03]} 38. Kh2
{[%clk 0:00:06.9]} 38... Qxb2 {[%clk 0:00:03.4]} 39. Qc5+ {[%clk 0:00:04.2]}
39... Kf7 {[%clk 0:00:03.2]} 40. Rd4 {[%clk 0:00:04.2]} 40... Kg6 {[%clk
0:00:02.5]} 41. h4 {[%clk 0:00:03.5]} 41... h5 {[%clk 0:00:02.5]} 42. Rd8 {[%clk
0:00:02.5]} 42... Qe5+ {[%clk 0:00:01.9]} 43. Qxe5 {[%clk 0:00:02.6]} 43... fxe5
{[%clk 0:00:02.6]} 44. Kg3 {[%clk 0:00:02.8]} 44... c3 {[%clk 0:00:02.7]} 45.
Rc8 {[%clk 0:00:02.8]} 45... c2 {[%clk 0:00:03.2]} 46. Kf2 {[%clk 0:00:02.9]}
46... Kf5 {[%clk 0:00:03.4]} 47. Ke3 {[%clk 0:00:02.7]} 47... e4 {[%clk
0:00:03.8]} 48. g3 {[%clk 0:00:02.9]} 48... Kg4 {[%clk 0:00:03.9]} 49. Kf2
{[%clk 0:00:03.1]} 49... Kf5 {[%clk 0:00:02]} 50. Rc5+ {[%clk 0:00:03]} 50...
Ke6 {[%clk 0:00:02.1]} 51. Ke3 {[%clk 0:00:03.2]} 51... Kd6 {[%clk 0:00:02.4]}
52. Rc8 {[%clk 0:00:03.4]} 52... Kd5 {[%clk 0:00:02.5]} 53. Rc7 {[%clk
0:00:03.6]} 53... g6 {[%clk 0:00:02.1]} 54. Rc8 {[%clk 0:00:03.7]} 54... Bc4
{[%clk 0:00:02.1]} 55. Rd8+ {[%clk 0:00:03.7]} 55... Kc5 {[%clk 0:00:02.2]} 56.
Kd2 {[%clk 0:00:04.1]} 56... Bd3 {[%clk 0:00:02.1]} 57. Kc1 {[%clk 0:00:04.3]}
57... Kc4 {[%clk 0:00:02.2]} 58. Rg8 {[%clk 0:00:03.8]} 58... e3 {[%clk
0:00:01.1]} 59. Re8 {[%clk 0:00:02.7]} 59... Kd4 {[%clk 0:00:01.2]} 60. Rd8+
{[%clk 0:00:02.5]} 60... Ke4 {[%clk 0:00:01.7]} 61. Rf8 {[%clk 0:00:02.4]} 61...
e2 {[%clk 0:00:01.5]} 62. Kd2 {[%clk 0:00:02.3]} 62... c1=Q+ {[%clk 0:00:01.4]}
63. Kxc1 {[%clk 0:00:02.5]} 63... e1=Q+ {[%clk 0:00:01.8]} 64. Kb2 {[%clk
0:00:03.4]} 64... Qd2+ {[%clk 0:00:02.2]} 65. Kb3 {[%clk 0:00:03.4]} 65... Qc2+
{[%clk 0:00:02.5]} 66. Kb4 {[%clk 0:00:03.3]} 66... Qc4+ {[%clk 0:00:02.5]} 67.
Ka5 {[%clk 0:00:02.7]} 67... Qc5+ {[%clk 0:00:03.1]} 68. Ka4 {[%clk 0:00:02.3]}
68... Qxf8 {[%clk 0:00:03.8]} 69. g4 {[%clk 0:00:02.6]} 69... Qf3 {[%clk
0:00:04.4]} 70. g5 {[%clk 0:00:03.1]} 70... Qg4 {[%clk 0:00:04.2]} 71. Kb4
{[%clk 0:00:03.6]} 71... Qxh4 {[%clk 0:00:04.6]} 72. Ka4 {[%clk 0:00:04.4]}
72... Qxg5 {[%clk 0:00:05.3]} 73. Ka3 {[%clk 0:00:05.3]} 73... h4 {[%clk
0:00:05.9]} 74. Kb4 {[%clk 0:00:06.2]} 74... Qd5 {[%clk 0:00:06.2]} 75. Ka3
{[%clk 0:00:07.1]} 75... Qc4 {[%clk 0:00:06.1]} 76. Kb2 {[%clk 0:00:06.1]} 76...
Qc2+ {[%clk 0:00:06.1]} 77. Ka1 {[%clk 0:00:06.6]} 77... Qc3+ {[%clk 0:00:05.7]}
78. Ka2 {[%clk 0:00:06.6]} 78... Bc4+ {[%clk 0:00:06]} 79. Kb1 {[%clk
0:00:06.5]} 79... Qd2 {[%clk 0:00:06.4]} 80. Ka1 {[%clk 0:00:06.6]} 80... Qa2#
{[%clk 0:00:07]} 0-1